Workbook

Sheet Players
A1: Num | B1: Display Name | C1: NAF Name | D1: NAF Number (Random) | E1: Race | F1: Group
A2: =IF(C2="","",MAX(A$1:A1)+1) -> 1 | B2: Driesfield | C2: Driesfield | D2: 6183 | E2: Slann | F2: Belgium
A3: =IF(C3="","",MAX(A$1:A2)+1) -> 2 | B3: Malodoror | C3: Malodoror | D3: 20793 | E3: Chaos Pact | F3: Belgium
A4: =IF(C4="","",MAX(A$1:A3)+1) -> 3 | B4: JJ | C4: JJ | D4: 10488 | E4: Underworld | F4: Belgium
A5: =IF(C5="","",MAX(A$1:A4)+1) -> 4 | B5: Araznaroth | C5: Araznaroth | D5: 13199 | E5: Goblins | F5: Belgium
A6: =IF(C6="","",MAX(A$1:A5)+1) -> 5 | B6: Woete | C6: Woete | D6: 12500 | E6: Chaos Dwarves | F6: Belgium
A7: =IF(C7="","",MAX(A$1:A6)+1) -> 6 | B7: gninocker | C7: gninocker | D7: 17832 | E7: Vampires | F7: Belgium
A8: =IF(C8="","",MAX(A$1:A7)+1) -> 7 | B8: Phoenix11 | C8: Phoenix11 | D8: 8402 | E8: Dark Elves | F8: Belgium
A9: =IF(C9="","",MAX(A$1:A8)+1) -> 8 | B9: Dekra1979 | C9: Dekra1979 | D9: 16259 | E9: High Elves | F9: Belgium
A10: =IF(C10="","",MAX(A$1:A9)+1) -> 9 | B10: Tripleskull | C10: Tripleskull | D10: 9524 | E10: Chaos | F10: Denmark
A11: =IF(C11="","",MAX(A$1:A10)+1) -> 10 | B11: MissSweden | C11: MissSweden | D11: 11498 | E11: Chaos | F11: Denmark
A12: =IF(C12="","",MAX(A$1:A11)+1) -> 11 | B12: kfoged | C12: kfoged | D12: 10691 | E12: Slann | F12: Denmark
A13: =IF(C13="","",MAX(A$1:A12)+1) -> 12 | B13: Tank | C13: Tank | D13: 11501 | E13: Necromantic | F13: Denmark
A14: =IF(C14="","",MAX(A$1:A13)+1) -> 13 | B14: Topper | C14: Topper | D14: 6363 | E14: Chaos | F14: Denmark
A15: =IF(C15="","",MAX(A$1:A14)+1) -> 14 | B15: SpecialOne | C15: SpecialOne | D15: 16742 | E15: Lizardmen | F15: Denmark
A16: =IF(C16="","",MAX(A$1:A15)+1) -> 15 | B16: Jaqra | C16: Jaqra | D16: 19750 | E16: Skaven | F16: Denmark
A17: =IF(C17="","",MAX(A$1:A16)+1) -> 16 | B17: Niebling | C17: Niebling | D17: 11499 | E17: Amazons | F17: Denmark
A18: =IF(C18="","",MAX(A$1:A17)+1) -> 17 | B18: Lycos | C18: Lycos | D18: 2870 | E18: Ogres | F18: England
A19: =IF(C19="","",MAX(A$1:A18)+1) -> 18 | B19: PurpleGoo | C19: PurpleGoo | D19: 11777 | E19: Amazons | F19: England
A20: =IF(C20="","",MAX(A$1:A19)+1) -> 19 | B20: Geggster | C20: Geggster | D20: 70 | E20: Orc | F20: England
A21: =IF(C21="","",MAX(A$1:A20)+1) -> 20 | B21: Podfrey | C21: Podfrey | D21: 149 | E21: Slann | F21: England
A22: =IF(C22="","",MAX(A$1:A21)+1) -> 21 | B22: JimJimany | C22: JimJimany | D22: 12403 | E22: Goblins | F22: England
A23: =IF(C23="","",MAX(A$1:A22)+1) -> 22 | B23: Joemanji | C23: Joemanji | D23: 3312 | E23: Chaos | F23: England
A24: =IF(C24="","",MAX(A$1:A23)+1) -> 23 | B24: Mubo | C24: Mubo | D24: 13409 | E24: Amazons | F24: England
A25: =IF(C25="","",MAX(A$1:A24)+1) -> 24 | B25: Wilzif | C25: Wilzif | D25: 8901 | E25: Underworld | F25: England
A26: =IF(B26="","",MAX(A$1:A25)+1) -> 25 | B26: MacWitt | C26: MacWitt | D26: 19932 | E26: Elves | F26: Finland
A27: =IF(B27="","",MAX(A$1:A26)+1) -> 26 | B27: Harza | C27: Harza | D27: 20060 | E27: Dwarves | F27: Finland
A28: =IF(B28="","",MAX(A$1:A27)+1) -> 27 | B28: jopotzuki | C28: jopotzuki | D28: 20783 | E28: Nurgle's Rotters | F28: Finland
A29: =IF(B29="","",MAX(A$1:A28)+1) -> 28 | B29: edheim | C29: edheim | D29: 20760 | E29: Chaos | F29: Finland
A30: =IF(B30="","",MAX(A$1:A29)+1) -> 29 | B30: BeerBeer | C30: BeerBeer | D30: 18245 | E30: Necromantic | F30: Finland
A31: =IF(B31="","",MAX(A$1:A30)+1) -> 30 | B31: J-Ho | C31: J-Ho | D31: 19106 | E31: Nurgle's Rotters | F31: Finland
A32: =IF(B32="","",MAX(A$1:A31)+1) -> 31 | B32: ratogre | C32: ratogre | D32: 22007 | E32: Necromantic | F32: Finland
A33: =IF(B33="","",MAX(A$1:A32)+1) -> 32 | B33: valkohukka | C33: valkohukka | D33: 18772 | E33: Slann | F33: Finland
A34: =IF(B34="","",MAX(A$1:A33)+1) -> 33 | B34: BiBi | C34: BiBi | D34: 11491 | E34: Undead | F34: France
A35: =IF(B35="","",MAX(A$1:A34)+1) -> 34 | B35: Bouzzy | C35: Bouzzy | D35: 15733 | E35: Chaos Pact | F35: France
A36: =IF(B36="","",MAX(A$1:A35)+1) -> 35 | B36: BudWiser | C36: BudWiser | D36: 12987 | E36: Necromantic | F36: France
A37: =IF(B37="","",MAX(A$1:A36)+1) -> 36 | B37: Gros Nain | C37: Gros Nain | D37: 14524 | E37: Norse | F37: France
A38: =IF(B38="","",MAX(A$1:A37)+1) -> 37 | B38: Harti | C38: Harti | D38: 13583 | E38: Skaven | F38: France
A39: =IF(B39="","",MAX(A$1:A38)+1) -> 38 | B39: Justicium | C39: Justicium | D39: 12319 | E39: Wood Elves | F39: France
A40: =IF(B40="","",MAX(A$1:A39)+1) -> 39 | B40: Matt le fou | C40: Matt le fou | D40: 13561 | E40: Undead | F40: France
A41: =IF(B41="","",MAX(A$1:A40)+1) -> 40 | B41: Simon_ACP | C41: Simon_ACP | D41: 17603 | E41: Humans | F41: France
A42: =IF(B42="","",MAX(A$1:A41)+1) -> 41 | B42: Arioso | C42: Arioso | D42: 18738 | E42: Orc | F42: Germany
A43: =IF(B43="","",MAX(A$1:A42)+1) -> 42 | B43: RoterSternHochdah | C43: RoterSternHochdah | D43: 18704 | E43: Chaos Dwarves | F43: Germany
A44: =IF(B44="","",MAX(A$1:A43)+1) -> 43 | B44: Muadib | C44: Muadib | D44: 2800 | E44: Khemri | F44: Germany
A45: =IF(B45="","",MAX(A$1:A44)+1) -> 44 | B45: Candlejack | C45: Candlejack | D45: 5844 | E45: Undead | F45: Germany
A46: =IF(B46="","",MAX(A$1:A45)+1) -> 45 | B46: Gaunab | C46: Gaunab | D46: 2150 | E46: Orc | F46: Germany
A47: =IF(B47="","",MAX(A$1:A46)+1) -> 46 | B47: Prince | C47: Prince | D47: 341 | E47: Lizardmen | F47: Germany
A48: =IF(B48="","",MAX(A$1:A47)+1) -> 47 | B48: DocMaxx | C48: DocMaxx | D48: 16347 | E48: Chaos Pact | F48: Germany
A49: =IF(B49="","",MAX(A$1:A48)+1) -> 48 | B49: Jonny_Kanone | C49: Jonny_Kanone | D49: 9621 | E49: Chaos Dwarves | F49: Germany
A50: =IF(B50="","",MAX(A$1:A49)+1) -> 49 | B50: BlackOrc | C50: BlackOrc | D50: 6233 | E50: Chaos Pact | F50: Hungary
A51: =IF(B51="","",MAX(A$1:A50)+1) -> 50 | B51: Itzla | C51: Itzla | D51: 9758 | E51: Chaos Dwarves | F51: Hungary
A52: =IF(B52="","",MAX(A$1:A51)+1) -> 51 | B52: Wolio | C52: Wolio | D52: 20061 | E52: Dark Elves | F52: Hungary
A53: =IF(B53="","",MAX(A$1:A52)+1) -> 52 | B53: noraal | C53: noraal | D53: 21798 | E53: Underworld | F53: Hungary
A54: =IF(B54="","",MAX(A$1:A53)+1) -> 53 | B54: Favi | C54: Favi | D54: 20062 | E54: Skaven | F54: Hungary
A55: =IF(B55="","",MAX(A$1:A54)+1) -> 54 | B55: cz | C55: cz | D55: 21604 | E55: Underworld | F55: Hungary
A56: =IF(B56="","",MAX(A$1:A55)+1) -> 55 | B56: swifty | C56: swifty | D56: 20309 | E56: Khemri | F56: Hungary
A57: =IF(B57="","",MAX(A$1:A56)+1) -> 56 | B57: Alex05 | C57: Alex05 | D57: 22352 | E57: Orc | F57: Hungary
A58: =IF(B58="","",MAX(A$1:A57)+1) -> 57 | B58: Beppe | C58: Beppe | D58: 3564 | E58: Orc | F58: Italy
A59: =IF(B59="","",MAX(A$1:A58)+1) -> 58 | B59: Dirold | C59: Dirold | D59: 5900 | E59: Amazons | F59: Italy
A60: =IF(B60="","",MAX(A$1:A59)+1) -> 59 | B60: Farina | C60: Farina | D60: 3533 | E60: Chaos Dwarves | F60: Italy
A61: =IF(B61="","",MAX(A$1:A60)+1) -> 60 | B61: Kaltenland | C61: Kaltenland | D61: 11924 | E61: Chaos Pact | F61: Italy
A62: =IF(B62="","",MAX(A$1:A61)+1) -> 61 | B62: Liam | C62: Liam | D62: 5906 | E62: Wood Elves | F62: Italy
A63: =IF(B63="","",MAX(A$1:A62)+1) -> 62 | B63: Matte8 | C63: Matte8 | D63: 13785 | E63: Khemri | F63: Italy
A64: =IF(B64="","",MAX(A$1:A63)+1) -> 63 | B64: Spartako | C64: Spartako | D64: 13417 | E64: Skaven | F64: Italy
A65: =IF(B65="","",MAX(A$1:A64)+1) -> 64 | B65: Verrinho | C65: Verrinho | D65: 16930 | E65: Nurgle's Rotters | F65: Italy
A66: =IF(B66="","",MAX(A$1:A65)+1) -> 65 | B66: zulu | C66: zulu | D66: 16829 | E66: Goblins | F66: Norway
A67: =IF(B67="","",MAX(A$1:A66)+1) -> 66 | B67: Endalos | C67: Endalos | D67: 17242 | E67: Wood Elves | F67: Norway
A68: =IF(B68="","",MAX(A$1:A67)+1) -> 67 | B68: The_Ref | C68: The_Ref | D68: 9441 | E68: Amazons | F68: Norway
A69: =IF(B69="","",MAX(A$1:A68)+1) -> 68 | B69: straume | C69: straume | D69: 20685 | E69: High Elves | F69: Norway
A70: =IF(B70="","",MAX(A$1:A69)+1) -> 69 | B70: bothun | C70: bothun | D70: 20953 | E70: Wood Elves | F70: Norway
A71: =IF(B71="","",MAX(A$1:A70)+1) -> 70 | B71: FrankPedersen | C71: FrankPedersen | D71: 20899 | E71: Chaos | F71: Norway
A72: =IF(B72="","",MAX(A$1:A71)+1) -> 71 | B72: mynock | C72: mynock | D72: 20775 | E72: Goblins | F72: Norway
A73: =IF(B73="","",MAX(A$1:A72)+1) -> 72 | B73: GreatWhiteHope | C73: GreatWhiteHope | D73: 20881 | E73: Lizardmen | F73: Norway
A74: =IF(B74="","",MAX(A$1:A73)+1) -> 73 | B74: Mewash | C74: Mewash | D74: 21627 | E74: Vampires | F74: Poland
A75: =IF(B75="","",MAX(A$1:A74)+1) -> 74 | B75: Reszka | C75: Reszka | D75: 21573 | E75: Dark Elves | F75: Poland
A76: =IF(B76="","",MAX(A$1:A75)+1) -> 75 | B76: Leonek | C76: Leonek | D76: 22375 | E76: Vampires | F76: Poland
A77: =IF(B77="","",MAX(A$1:A76)+1) -> 76 | B77: Domingo | C77: Domingo | D77: 20280 | E77: Ogres | F77: Poland
A78: =IF(B78="","",MAX(A$1:A77)+1) -> 77 | B78: Slimaq | C78: Slimaq | D78: 21957 | E78: Dark Elves | F78: Poland
A79: =IF(B79="","",MAX(A$1:A78)+1) -> 78 | B79: Warrior1980 | C79: Warrior1980 | D79: 22376 | E79: Norse | F79: Poland
A80: =IF(B80="","",MAX(A$1:A79)+1) -> 79 | B80: Juniooor7 | C80: Juniooor7 | D80: 22455 | E80: Norse | F80: Poland
A81: =IF(B81="","",MAX(A$1:A80)+1) -> 80 | B81: Shawass | C81: Shawass | D81: 18416 | E81: Chaos Pact | F81: Poland
A82: =IF(B82="","",MAX(A$1:A81)+1) -> 81 | B82: DonShula | C82: DonShula | D82: 14445 | E82: Skaven | F82: Scotland
A83: =IF(B83="","",MAX(A$1:A82)+1) -> 82 | B83: Garrick | C83: Garrick | D83: 18506 | E83: Chaos Dwarves | F83: Scotland
A84: =IF(B84="","",MAX(A$1:A83)+1) -> 83 | B84: Purdindas | C84: Purdindas | D84: 10831 | E84: Undead | F84: Scotland
A85: =IF(B85="","",MAX(A$1:A84)+1) -> 84 | B85: JamesEs | C85: JamesEs | D85: 17875 | E85: Vampires | F85: Scotland
A86: =IF(B86="","",MAX(A$1:A85)+1) -> 85 | B86: sann0638 | C86: sann0638 | D86: 8866 | E86: Humans | F86: Scotland
A87: =IF(B87="","",MAX(A$1:A86)+1) -> 86 | B87: Valen | C87: Valen | D87: 1538 | E87: Nurgle's Rotters | F87: Scotland
A88: =IF(B88="","",MAX(A$1:A87)+1) -> 87 | B88: Loki | C88: Loki | D88: 371 | E88: Underworld | F88: Scotland
A89: =IF(B89="","",MAX(A$1:A88)+1) -> 88 | B89: HumptyTrump | C89: HumptyTrump | D89: 20360 | E89: Skaven | F89: Scotland
A90: =IF(B90="","",MAX(A$1:A89)+1) -> 89 | B90: Dark Duke | C90: Dark Duke | D90: 2925 | E90: Chaos Dwarves | F90: Spain
A91: =IF(B91="","",MAX(A$1:A90)+1) -> 90 | B91: Obeliz | C91: Obeliz | D91: 2519 | E91: Chaos | F91: Spain
A92: =IF(B92="","",MAX(A$1:A91)+1) -> 91 | B92: Joanet | C92: Joanet | D92: 7690 | E92: Khemri | F92: Spain
A93: =IF(B93="","",MAX(A$1:A92)+1) -> 92 | B93: Duke_Luthor_Von_Hawkfire | C93: Duke_Luthor_Von_Hawkfire | D93: 11793 | E93: Vampires | F93: Spain
A94: =IF(B94="","",MAX(A$1:A93)+1) -> 93 | B94: Barry | C94: Barry | D94: 3290 | E94: High Elves | F94: Spain
A95: =IF(B95="","",MAX(A$1:A94)+1) -> 94 | B95: Idroj | C95: Idroj | D95: 20930 | E95: Dwarves | F95: Spain
A96: =IF(B96="","",MAX(A$1:A95)+1) -> 95 | B96: Malasnoticias | C96: Malasnoticias | D96: 17068 | E96: Chaos Pact | F96: Spain
A97: =IF(B97="","",MAX(A$1:A96)+1) -> 96 | B97: Tactel | C97: Tactel | D97: 20218 | E97: High Elves | F97: Spain
A98: =IF(B98="","",MAX(A$1:A97)+1) -> 97 | B98: Melisqus | C98: Melisqus | D98: 16238 | E98: Orc | F98: Sweden
A99: =IF(B99="","",MAX(A$1:A98)+1) -> 98 | B99: Inforthepain | C99: Inforthepain | D99: 19483 | E99: Wood Elves | F99: Sweden
A100: =IF(B100="","",MAX(A$1:A99)+1) -> 99 | B100: Pidpad | C100: Pidpad | D100: 20957 | E100: High Elves | F100: Sweden
A101: =IF(B101="","",MAX(A$1:A100)+1) -> 100 | B101: Skuld | C101: Skuld | D101: 20481 | E101: Dark Elves | F101: Sweden
A102: =IF(B102="","",MAX(A$1:A101)+1) -> 101 | B102: JohnnyD | C102: JohnnyD | D102: 18171 | E102: Halflings | F102: Sweden
A103: =IF(B103="","",MAX(A$1:A102)+1) -> 102 | B103: Skoberget | C103: Skoberget | D103: 19448 | E103: Slann | F103: Sweden
A104: =IF(B104="","",MAX(A$1:A103)+1) -> 103 | B104: Dragons | C104: Dragons | D104: 19003 | E104: Orc | F104: Sweden
A105: =IF(B105="","",MAX(A$1:A104)+1) -> 104 | B105: Pellevin | C105: Pellevin | D105: 19271 | E105: Elves | F105: Sweden
A106: =IF(B106="","",MAX(A$1:A105)+1) -> 105 | B106: Strider84 | C106: Strider84 | D106: 14113 | E106: Goblins | F106: Switzerland
A107: =IF(B107="","",MAX(A$1:A106)+1) -> 106 | B107: Jokaero | C107: Jokaero | D107: 2785 | E107: Vampires | F107: Switzerland
A108: =IF(B108="","",MAX(A$1:A107)+1) -> 107 | B108: Phifoe | C108: Phifoe | D108: 16959 | E108: Goblins | F108: Switzerland
A109: =IF(B109="","",MAX(A$1:A108)+1) -> 108 | B109: Goss | C109: Goss | D109: 18266 | E109: Humans | F109: Switzerland
A110: =IF(B110="","",MAX(A$1:A109)+1) -> 109 | B110: Madmatt13 | C110: Madmatt13 | D110: 19790 | E110: Norse | F110: Switzerland
A111: =IF(B111="","",MAX(A$1:A110)+1) -> 110 | B111: Elrik | C111: Elrik | D111: 19344 | E111: High Elves | F111: Switzerland
A112: =IF(B112="","",MAX(A$1:A111)+1) -> 111 | B112: sigu70 | C112: sigu70 | D112: 17003 | E112: Wood Elves | F112: Switzerland
A113: =IF(B113="","",MAX(A$1:A112)+1) -> 112 | B113: Macabeo | C113: Macabeo | D113: 18608 | E113: Chaos Pact | F113: Switzerland
A114: =IF(B114="","",MAX(A$1:A113)+1) -> 113 | B114: Balder | C114: Balder | D114: 17725 | E114: Dark Elves | F114: Viking
A115: =IF(B115="","",MAX(A$1:A114)+1) -> 114 | B115: Corwin | C115: Corwin | D115: 17878 | E115: Chaos Pact | F115: Viking
A116: =IF(B116="","",MAX(A$1:A115)+1) -> 115 | B116: Faccko | C116: Faccko | D116: 17893 | E116: Dwarves | F116: Viking
A117: =IF(B117="","",MAX(A$1:A116)+1) -> 116 | B117: Mufflo | C117: Mufflo | D117: 15048 | E117: Ogres | F117: Viking
A118: =IF(B118="","",MAX(A$1:A117)+1) -> 117 | B118: brocCooli | C118: brocCooli | D118: 12552 | E118: Slann | F118: Viking
A119: =IF(B119="","",MAX(A$1:A118)+1) -> 118 | B119: Duckwing | C119: Duckwing | D119: 16278 | E119: Vampires | F119: Viking
A120: =IF(B120="","",MAX(A$1:A119)+1) -> 119 | B120: Bernuz | C120: Bernuz | D120: 19542 | E120: Lizardmen | F120: Viking
A121: =IF(B121="","",MAX(A$1:A120)+1) -> 120 | B121: Purrelito | C121: Purrelito | D121: 15323 | E121: Skaven | F121: Viking
A122: =IF(B122="","",MAX(A$1:A121)+1) -> 121 | B122: nonumber | C122: nonumber | D122: 8923 | E122: Skaven | F122: Wales
A123: =IF(B123="","",MAX(A$1:A122)+1) -> 122 | B123: 20Phoenix | C123: 20Phoenix | D123: 19395 | E123: Chaos Dwarves | F123: Wales
A124: =IF(B124="","",MAX(A$1:A123)+1) -> 123 | B124: SFisher91 | C124: SFisher91 | D124: 16057 | E124: Chaos Pact | F124: Wales
A125: =IF(B125="","",MAX(A$1:A124)+1) -> 124 | B125: Dionysian | C125: Dionysian | D125: 19480 | E125: Dark Elves | F125: Wales
A126: =IF(B126="","",MAX(A$1:A125)+1) -> 125 | B126: Northernknight | C126: Northernknight | D126: 7569 | E126: Chaos | F126: Wales
A127: =IF(B127="","",MAX(A$1:A126)+1) -> 126 | B127: MadeofWelsh | C127: MadeofWelsh | D127: 12184 | E127: Lizardmen | F127: Wales
A128: =IF(B128="","",MAX(A$1:A127)+1) -> 127 | B128: Ploppy_McPloppy | C128: Ploppy_McPloppy | D128: 16417 | E128: Slann | F128: Wales
A129: =IF(B129="","",MAX(A$1:A128)+1) -> 128 | B129: andydavo | C129: andydavo | D129: 19726 | E129: Ogres | F129: Wales

Sheet FixturePaste
A1: Table | B1: Home Player | C1: Away Player
A2: 1 | B2: Pellevin | C2: Domingo
A3: =A2+1 -> 2 | B3: Dragons | C3: Mewash
A4: =A3+1 -> 3 | B4: Inforthepain | C4: Reszka
A5: 4 | B5: Skoberget | C5: Leonek
A6: 5 | B6: JohnnyD | C6: Slimaq
A7: 6 | B7: Melisqus | C7: Warrior1980
A8: 7 | B8: Skuld | C8: Juniooor7
A9: 8 | B9: Pidpad | C9: Shawass
A10: 9 | B10: The_Ref | C10: Joemanji
A11: 10 | B11: straume | C11: Geggster
A12: 11 | B12: GreatWhiteHope | C12: PurpleGoo
A13: 12 | B13: mynock | C13: Wilzif
A14: 13 | B14: FrankPedersen | C14: JimJimany
A15: 14 | B15: zulu | C15: Lycos
A16: 15 | B16: Endalos | C16: Podfrey
A17: 16 | B17: bothun | C17: Mubo
A18: 17 | B18: Purdindas | C18: Jokaero
A19: 18 | B19: Garrick | C19: Phifoe
A20: 19 | B20: DonShula | C20: Macabeo
A21: 20 | B21: sann0638 | C21: Madmatt13
A22: 21 | B22: Loki | C22: Strider84
A23: 22 | B23: JamesEs | C23: sigu70
A24: 23 | B24: Valen | C24: Elrik
A25: 24 | B25: HumptyTrump | C25: Goss
A26: 25 | B26: Araznaroth | C26: Purrelito
A27: 26 | B27: Dekra1979 | C27: brocCooli
A28: 27 | B28: Driesfield | C28: Mufflo
A29: 28 | B29: JJ | C29: Duckwing
A30: 29 | B30: gninocker | C30: Bernuz
A31: 30 | B31: Malodoror | C31: Balder
A32: 31 | B32: Phoenix11 | C32: Corwin
A33: 32 | B33: Woete | C33: Faccko
A34: 33 | B34: Dionysian | C34: Obeliz
A35: 34 | B35: SFisher91 | C35: Barry
A36: 35 | B36: Ploppy_McPloppy | C36: Malasnoticias
A37: 36 | B37: 20Phoenix | C37: Tactel
A38: 37 | B38: andydavo | C38: Dark Duke
A39: 38 | B39: MadeofWelsh | C39: Joanet
A40: 39 | B40: Northernknight | C40: Duke_Luthor_Von_Hawkfire
A41: 40 | B41: nonumber | C41: Idroj
A42: 41 | B42: Matte8 | C42: Jaqra
A43: 42 | B43: Kaltenland | C43: Niebling
A44: 43 | B44: Verrinho | C44: Tank
A45: 44 | B45: Dirold | C45: MissSweden
A46: 45 | B46: Farina | C46: Tripleskull
A47: 46 | B47: Beppe | C47: Topper
A48: 47 | B48: Liam | C48: SpecialOne
A49: 48 | B49: Spartako | C49: kfoged
A50: 49 | B50: Simon_ACP | C50: valkohukka
A51: 50 | B51: Gros Nain | C51: J-Ho
A52: 51 | B52: BiBi | C52: BeerBeer
A53: 52 | B53: Matt le fou | C53: jopotzuki
A54: 53 | B54: Harti | C54: MacWitt
A55: 54 | B55: BudWiser | C55: Harza
A56: 55 | B56: Justicium | C56: edheim
A57: 56 | B57: Bouzzy | C57: ratogre
A58: 57 | B58: BlackOrc | C58: Candlejack
A59: 58 | B59: noraal | C59: Jonny_Kanone
A60: 59 | B60: Alex05 | C60: DocMaxx
A61: 60 | B61: Itzla | C61: Muadib
A62: 61 | B62: Wolio | C62: Arioso
A63: 62 | B63: Favi | C63: Gaunab
A64: 63 | B64: swifty | C64: Prince
A65: 64 | B65: cz | C65: RoterSternHochdah

Sheet PrintOut
A1: Table | B1: Home Player | C1: Away Player | D1: Home TD | E1: Away TD | F1: Home Cas | G1: Away Cas
A2: 1 | B2: Pellevin | C2: Domingo
A3: =A2+1 -> 2 | B3: Dragons | C3: Mewash
A4: =A3+1 -> 3 | B4: Inforthepain | C4: Reszka
A5: 4 | B5: Skoberget | C5: Leonek
A6: 5 | B6: JohnnyD | C6: Slimaq
A7: 6 | B7: Melisqus | C7: Warrior1980
A8: 7 | B8: Skuld | C8: Juniooor7
A9: 8 | B9: Pidpad | C9: Shawass
A10: 9 | B10: The_Ref | C10: Joemanji
A11: 10 | B11: straume | C11: Geggster
A12: 11 | B12: GreatWhiteHope | C12: PurpleGoo
A13: 12 | B13: mynock | C13: Wilzif
A14: 13 | B14: FrankPedersen | C14: JimJimany
A15: 14 | B15: zulu | C15: Lycos
A16: 15 | B16: Endalos | C16: Podfrey
A17: 16 | B17: bothun | C17: Mubo
A18: 17 | B18: Purdindas | C18: Jokaero
A19: 18 | B19: Garrick | C19: Phifoe
A20: 19 | B20: DonShula | C20: Macabeo
A21: 20 | B21: sann0638 | C21: Madmatt13
A22: 21 | B22: Loki | C22: Strider84
A23: 22 | B23: JamesEs | C23: sigu70
A24: 23 | B24: Valen | C24: Elrik
A25: 24 | B25: HumptyTrump | C25: Goss
A26: 25 | B26: Araznaroth | C26: Purrelito
A27: 26 | B27: Dekra1979 | C27: brocCooli
A28: 27 | B28: Driesfield | C28: Mufflo
A29: 28 | B29: JJ | C29: Duckwing
A30: 29 | B30: gninocker | C30: Bernuz
A31: 30 | B31: Malodoror | C31: Balder
A32: 31 | B32: Phoenix11 | C32: Corwin
A33: 32 | B33: Woete | C33: Faccko
A34: 33 | B34: Dionysian | C34: Obeliz
A35: 34 | B35: SFisher91 | C35: Barry
A36: 35 | B36: Ploppy_McPloppy | C36: Malasnoticias
A37: 36 | B37: 20Phoenix | C37: Tactel
A38: 37 | B38: andydavo | C38: Dark Duke
A39: 38 | B39: MadeofWelsh | C39: Joanet
A40: 39 | B40: Northernknight | C40: Duke_Luthor_Von_Hawkfire
A41: 40 | B41: nonumber | C41: Idroj
A42: 41 | B42: Matte8 | C42: Jaqra
A43: 42 | B43: Kaltenland | C43: Niebling
A44: 43 | B44: Verrinho | C44: Tank
A45: 44 | B45: Dirold | C45: MissSweden
A46: 45 | B46: Farina | C46: Tripleskull
A47: 46 | B47: Beppe | C47: Topper
A48: 47 | B48: Liam | C48: SpecialOne
A49: 48 | B49: Spartako | C49: kfoged
A50: 49 | B50: Simon_ACP | C50: valkohukka
A51: 50 | B51: Gros Nain | C51: J-Ho
A52: 51 | B52: BiBi | C52: BeerBeer
A53: 52 | B53: Matt le fou | C53: jopotzuki
A54: 53 | B54: Harti | C54: MacWitt
A55: 54 | B55: BudWiser | C55: Harza
A56: 55 | B56: Justicium | C56: edheim
A57: 56 | B57: Bouzzy | C57: ratogre
A58: 57 | B58: BlackOrc | C58: Candlejack
A59: 58 | B59: noraal | C59: Jonny_Kanone
A60: 59 | B60: Alex05 | C60: DocMaxx
A61: 60 | B61: Itzla | C61: Muadib
A62: 61 | B62: Wolio | C62: Arioso
A63: 62 | B63: Favi | C63: Gaunab
A64: 63 | B64: swifty | C64: Prince
A65: 64 | B65: cz | C65: RoterSternHochdah

Sheet Display
B1: Home | E1: Away
A2: Table | B2: Player | C2: Country | D2: Race | E2: Player | F2: Country | G2: Race
A3: 1 | B3: =FixturePaste!B2 -> Pellevin | C3: =VLOOKUP(B3,Players!$C$2:$F$129,4,FALSE) -> Sweden | D3: =VLOOKUP(B3,Players!$C$2:$F$129,3,FALSE) -> Elves | E3: =FixturePaste!C2 -> Domingo | F3: =VLOOKUP(E3,Players!$C$2:$F$129,4,FALSE) -> Poland | G3: =VLOOKUP(E3,Players!$C$2:$F$129,3,FALSE) -> Ogres
A4: 2 | B4: =FixturePaste!B3 -> Dragons | C4: =VLOOKUP(B4,Players!$C$2:$F$129,4,FALSE) -> Sweden | D4: =VLOOKUP(B4,Players!$C$2:$F$129,3,FALSE) -> Orc | E4: =FixturePaste!C3 -> Mewash | F4: =VLOOKUP(E4,Players!$C$2:$F$129,4,FALSE) -> Poland | G4: =VLOOKUP(E4,Players!$C$2:$F$129,3,FALSE) -> Vampires
A5: 3 | B5: =FixturePaste!B4 -> Inforthepain | C5: =VLOOKUP(B5,Players!$C$2:$F$129,4,FALSE) -> Sweden | D5: =VLOOKUP(B5,Players!$C$2:$F$129,3,FALSE) -> Wood Elves | E5: =FixturePaste!C4 -> Reszka | F5: =VLOOKUP(E5,Players!$C$2:$F$129,4,FALSE) -> Poland | G5: =VLOOKUP(E5,Players!$C$2:$F$129,3,FALSE) -> Dark Elves
A6: 4 | B6: =FixturePaste!B5 -> Skoberget | C6: =VLOOKUP(B6,Players!$C$2:$F$129,4,FALSE) -> Sweden | D6: =VLOOKUP(B6,Players!$C$2:$F$129,3,FALSE) -> Slann | E6: =FixturePaste!C5 -> Leonek | F6: =VLOOKUP(E6,Players!$C$2:$F$129,4,FALSE) -> Poland | G6: =VLOOKUP(E6,Players!$C$2:$F$129,3,FALSE) -> Vampires
A7: 5 | B7: =FixturePaste!B6 -> JohnnyD | C7: =VLOOKUP(B7,Players!$C$2:$F$129,4,FALSE) -> Sweden | D7: =VLOOKUP(B7,Players!$C$2:$F$129,3,FALSE) -> Halflings | E7: =FixturePaste!C6 -> Slimaq | F7: =VLOOKUP(E7,Players!$C$2:$F$129,4,FALSE) -> Poland | G7: =VLOOKUP(E7,Players!$C$2:$F$129,3,FALSE) -> Dark Elves
A8: 6 | B8: =FixturePaste!B7 -> Melisqus | C8: =VLOOKUP(B8,Players!$C$2:$F$129,4,FALSE) -> Sweden | D8: =VLOOKUP(B8,Players!$C$2:$F$129,3,FALSE) -> Orc | E8: =FixturePaste!C7 -> Warrior1980 | F8: =VLOOKUP(E8,Players!$C$2:$F$129,4,FALSE) -> Poland | G8: =VLOOKUP(E8,Players!$C$2:$F$129,3,FALSE) -> Norse
A9: 7 | B9: =FixturePaste!B8 -> Skuld | C9: =VLOOKUP(B9,Players!$C$2:$F$129,4,FALSE) -> Sweden | D9: =VLOOKUP(B9,Players!$C$2:$F$129,3,FALSE) -> Dark Elves | E9: =FixturePaste!C8 -> Juniooor7 | F9: =VLOOKUP(E9,Players!$C$2:$F$129,4,FALSE) -> Poland | G9: =VLOOKUP(E9,Players!$C$2:$F$129,3,FALSE) -> Norse
A10: 8 | B10: =FixturePaste!B9 -> Pidpad | C10: =VLOOKUP(B10,Players!$C$2:$F$129,4,FALSE) -> Sweden | D10: =VLOOKUP(B10,Players!$C$2:$F$129,3,FALSE) -> High Elves | E10: =FixturePaste!C9 -> Shawass | F10: =VLOOKUP(E10,Players!$C$2:$F$129,4,FALSE) -> Poland | G10: =VLOOKUP(E10,Players!$C$2:$F$129,3,FALSE) -> Chaos Pact
A11: 9 | B11: =FixturePaste!B10 -> The_Ref | C11: =VLOOKUP(B11,Players!$C$2:$F$129,4,FALSE) -> Norway | D11: =VLOOKUP(B11,Players!$C$2:$F$129,3,FALSE) -> Amazons | E11: =FixturePaste!C10 -> Joemanji | F11: =VLOOKUP(E11,Players!$C$2:$F$129,4,FALSE) -> England | G11: =VLOOKUP(E11,Players!$C$2:$F$129,3,FALSE) -> Chaos
A12: 10 | B12: =FixturePaste!B11 -> straume | C12: =VLOOKUP(B12,Players!$C$2:$F$129,4,FALSE) -> Norway | D12: =VLOOKUP(B12,Players!$C$2:$F$129,3,FALSE) -> High Elves | E12: =FixturePaste!C11 -> Geggster | F12: =VLOOKUP(E12,Players!$C$2:$F$129,4,FALSE) -> England | G12: =VLOOKUP(E12,Players!$C$2:$F$129,3,FALSE) -> Orc
A13: 11 | B13: =FixturePaste!B12 -> GreatWhiteHope | C13: =VLOOKUP(B13,Players!$C$2:$F$129,4,FALSE) -> Norway | D13: =VLOOKUP(B13,Players!$C$2:$F$129,3,FALSE) -> Lizardmen | E13: =FixturePaste!C12 -> PurpleGoo | F13: =VLOOKUP(E13,Players!$C$2:$F$129,4,FALSE) -> England | G13: =VLOOKUP(E13,Players!$C$2:$F$129,3,FALSE) -> Amazons
A14: 12 | B14: =FixturePaste!B13 -> mynock | C14: =VLOOKUP(B14,Players!$C$2:$F$129,4,FALSE) -> Norway | D14: =VLOOKUP(B14,Players!$C$2:$F$129,3,FALSE) -> Goblins | E14: =FixturePaste!C13 -> Wilzif | F14: =VLOOKUP(E14,Players!$C$2:$F$129,4,FALSE) -> England | G14: =VLOOKUP(E14,Players!$C$2:$F$129,3,FALSE) -> Underworld
A15: 13 | B15: =FixturePaste!B14 -> FrankPedersen | C15: =VLOOKUP(B15,Players!$C$2:$F$129,4,FALSE) -> Norway | D15: =VLOOKUP(B15,Players!$C$2:$F$129,3,FALSE) -> Chaos | E15: =FixturePaste!C14 -> JimJimany | F15: =VLOOKUP(E15,Players!$C$2:$F$129,4,FALSE) -> England | G15: =VLOOKUP(E15,Players!$C$2:$F$129,3,FALSE) -> Goblins
A16: 14 | B16: =FixturePaste!B15 -> zulu | C16: =VLOOKUP(B16,Players!$C$2:$F$129,4,FALSE) -> Norway | D16: =VLOOKUP(B16,Players!$C$2:$F$129,3,FALSE) -> Goblins | E16: =FixturePaste!C15 -> Lycos | F16: =VLOOKUP(E16,Players!$C$2:$F$129,4,FALSE) -> England | G16: =VLOOKUP(E16,Players!$C$2:$F$129,3,FALSE) -> Ogres
A17: 15 | B17: =FixturePaste!B16 -> Endalos | C17: =VLOOKUP(B17,Players!$C$2:$F$129,4,FALSE) -> Norway | D17: =VLOOKUP(B17,Players!$C$2:$F$129,3,FALSE) -> Wood Elves | E17: =FixturePaste!C16 -> Podfrey | F17: =VLOOKUP(E17,Players!$C$2:$F$129,4,FALSE) -> England | G17: =VLOOKUP(E17,Players!$C$2:$F$129,3,FALSE) -> Slann
A18: 16 | B18: =FixturePaste!B17 -> bothun | C18: =VLOOKUP(B18,Players!$C$2:$F$129,4,FALSE) -> Norway | D18: =VLOOKUP(B18,Players!$C$2:$F$129,3,FALSE) -> Wood Elves | E18: =FixturePaste!C17 -> Mubo | F18: =VLOOKUP(E18,Players!$C$2:$F$129,4,FALSE) -> England | G18: =VLOOKUP(E18,Players!$C$2:$F$129,3,FALSE) -> Amazons
A19: 17 | B19: =FixturePaste!B18 -> Purdindas | C19: =VLOOKUP(B19,Players!$C$2:$F$129,4,FALSE) -> Scotland | D19: =VLOOKUP(B19,Players!$C$2:$F$129,3,FALSE) -> Undead | E19: =FixturePaste!C18 -> Jokaero | F19: =VLOOKUP(E19,Players!$C$2:$F$129,4,FALSE) -> Switzerland | G19: =VLOOKUP(E19,Players!$C$2:$F$129,3,FALSE) -> Vampires
A20: 18 | B20: =FixturePaste!B19 -> Garrick | C20: =VLOOKUP(B20,Players!$C$2:$F$129,4,FALSE) -> Scotland | D20: =VLOOKUP(B20,Players!$C$2:$F$129,3,FALSE) -> Chaos Dwarves | E20: =FixturePaste!C19 -> Phifoe | F20: =VLOOKUP(E20,Players!$C$2:$F$129,4,FALSE) -> Switzerland | G20: =VLOOKUP(E20,Players!$C$2:$F$129,3,FALSE) -> Goblins
A21: 19 | B21: =FixturePaste!B20 -> DonShula | C21: =VLOOKUP(B21,Players!$C$2:$F$129,4,FALSE) -> Scotland | D21: =VLOOKUP(B21,Players!$C$2:$F$129,3,FALSE) -> Skaven | E21: =FixturePaste!C20 -> Macabeo | F21: =VLOOKUP(E21,Players!$C$2:$F$129,4,FALSE) -> Switzerland | G21: =VLOOKUP(E21,Players!$C$2:$F$129,3,FALSE) -> Chaos Pact
A22: 20 | B22: =FixturePaste!B21 -> sann0638 | C22: =VLOOKUP(B22,Players!$C$2:$F$129,4,FALSE) -> Scotland | D22: =VLOOKUP(B22,Players!$C$2:$F$129,3,FALSE) -> Humans | E22: =FixturePaste!C21 -> Madmatt13 | F22: =VLOOKUP(E22,Players!$C$2:$F$129,4,FALSE) -> Switzerland | G22: =VLOOKUP(E22,Players!$C$2:$F$129,3,FALSE) -> Norse
A23: 21 | B23: =FixturePaste!B22 -> Loki | C23: =VLOOKUP(B23,Players!$C$2:$F$129,4,FALSE) -> Scotland | D23: =VLOOKUP(B23,Players!$C$2:$F$129,3,FALSE) -> Underworld | E23: =FixturePaste!C22 -> Strider84 | F23: =VLOOKUP(E23,Players!$C$2:$F$129,4,FALSE) -> Switzerland | G23: =VLOOKUP(E23,Players!$C$2:$F$129,3,FALSE) -> Goblins
A24: 22 | B24: =FixturePaste!B23 -> JamesEs | C24: =VLOOKUP(B24,Players!$C$2:$F$129,4,FALSE) -> Scotland | D24: =VLOOKUP(B24,Players!$C$2:$F$129,3,FALSE) -> Vampires | E24: =FixturePaste!C23 -> sigu70 | F24: =VLOOKUP(E24,Players!$C$2:$F$129,4,FALSE) -> Switzerland | G24: =VLOOKUP(E24,Players!$C$2:$F$129,3,FALSE) -> Wood Elves
A25: 23 | B25: =FixturePaste!B24 -> Valen | C25: =VLOOKUP(B25,Players!$C$2:$F$129,4,FALSE) -> Scotland | D25: =VLOOKUP(B25,Players!$C$2:$F$129,3,FALSE) -> Nurgle's Rotters | E25: =FixturePaste!C24 -> Elrik | F25: =VLOOKUP(E25,Players!$C$2:$F$129,4,FALSE) -> Switzerland | G25: =VLOOKUP(E25,Players!$C$2:$F$129,3,FALSE) -> High Elves
A26: 24 | B26: =FixturePaste!B25 -> HumptyTrump | C26: =VLOOKUP(B26,Players!$C$2:$F$129,4,FALSE) -> Scotland | D26: =VLOOKUP(B26,Players!$C$2:$F$129,3,FALSE) -> Skaven | E26: =FixturePaste!C25 -> Goss | F26: =VLOOKUP(E26,Players!$C$2:$F$129,4,FALSE) -> Switzerland | G26: =VLOOKUP(E26,Players!$C$2:$F$129,3,FALSE) -> Humans
A27: 25 | B27: =FixturePaste!B26 -> Araznaroth | C27: =VLOOKUP(B27,Players!$C$2:$F$129,4,FALSE) -> Belgium | D27: =VLOOKUP(B27,Players!$C$2:$F$129,3,FALSE) -> Goblins | E27: =FixturePaste!C26 -> Purrelito | F27: =VLOOKUP(E27,Players!$C$2:$F$129,4,FALSE) -> Viking | G27: =VLOOKUP(E27,Players!$C$2:$F$129,3,FALSE) -> Skaven
A28: 26 | B28: =FixturePaste!B27 -> Dekra1979 | C28: =VLOOKUP(B28,Players!$C$2:$F$129,4,FALSE) -> Belgium | D28: =VLOOKUP(B28,Players!$C$2:$F$129,3,FALSE) -> High Elves | E28: =FixturePaste!C27 -> brocCooli | F28: =VLOOKUP(E28,Players!$C$2:$F$129,4,FALSE) -> Viking | G28: =VLOOKUP(E28,Players!$C$2:$F$129,3,FALSE) -> Slann
A29: 27 | B29: =FixturePaste!B28 -> Driesfield | C29: =VLOOKUP(B29,Players!$C$2:$F$129,4,FALSE) -> Belgium | D29: =VLOOKUP(B29,Players!$C$2:$F$129,3,FALSE) -> Slann | E29: =FixturePaste!C28 -> Mufflo | F29: =VLOOKUP(E29,Players!$C$2:$F$129,4,FALSE) -> Viking | G29: =VLOOKUP(E29,Players!$C$2:$F$129,3,FALSE) -> Ogres
A30: 28 | B30: =FixturePaste!B29 -> JJ | C30: =VLOOKUP(B30,Players!$C$2:$F$129,4,FALSE) -> Belgium | D30: =VLOOKUP(B30,Players!$C$2:$F$129,3,FALSE) -> Underworld | E30: =FixturePaste!C29 -> Duckwing | F30: =VLOOKUP(E30,Players!$C$2:$F$129,4,FALSE) -> Viking | G30: =VLOOKUP(E30,Players!$C$2:$F$129,3,FALSE) -> Vampires
A31: 29 | B31: =FixturePaste!B30 -> gninocker | C31: =VLOOKUP(B31,Players!$C$2:$F$129,4,FALSE) -> Belgium | D31: =VLOOKUP(B31,Players!$C$2:$F$129,3,FALSE) -> Vampires | E31: =FixturePaste!C30 -> Bernuz | F31: =VLOOKUP(E31,Players!$C$2:$F$129,4,FALSE) -> Viking | G31: =VLOOKUP(E31,Players!$C$2:$F$129,3,FALSE) -> Lizardmen
A32: 30 | B32: =FixturePaste!B31 -> Malodoror | C32: =VLOOKUP(B32,Players!$C$2:$F$129,4,FALSE) -> Belgium | D32: =VLOOKUP(B32,Players!$C$2:$F$129,3,FALSE) -> Chaos Pact | E32: =FixturePaste!C31 -> Balder | F32: =VLOOKUP(E32,Players!$C$2:$F$129,4,FALSE) -> Viking | G32: =VLOOKUP(E32,Players!$C$2:$F$129,3,FALSE) -> Dark Elves
A33: 31 | B33: =FixturePaste!B32 -> Phoenix11 | C33: =VLOOKUP(B33,Players!$C$2:$F$129,4,FALSE) -> Belgium | D33: =VLOOKUP(B33,Players!$C$2:$F$129,3,FALSE) -> Dark Elves | E33: =FixturePaste!C32 -> Corwin | F33: =VLOOKUP(E33,Players!$C$2:$F$129,4,FALSE) -> Viking | G33: =VLOOKUP(E33,Players!$C$2:$F$129,3,FALSE) -> Chaos Pact
A34: 32 | B34: =FixturePaste!B33 -> Woete | C34: =VLOOKUP(B34,Players!$C$2:$F$129,4,FALSE) -> Belgium | D34: =VLOOKUP(B34,Players!$C$2:$F$129,3,FALSE) -> Chaos Dwarves | E34: =FixturePaste!C33 -> Faccko | F34: =VLOOKUP(E34,Players!$C$2:$F$129,4,FALSE) -> Viking | G34: =VLOOKUP(E34,Players!$C$2:$F$129,3,FALSE) -> Dwarves
A35: 33 | B35: =FixturePaste!B34 -> Dionysian | C35: =VLOOKUP(B35,Players!$C$2:$F$129,4,FALSE) -> Wales | D35: =VLOOKUP(B35,Players!$C$2:$F$129,3,FALSE) -> Dark Elves | E35: =FixturePaste!C34 -> Obeliz | F35: =VLOOKUP(E35,Players!$C$2:$F$129,4,FALSE) -> Spain | G35: =VLOOKUP(E35,Players!$C$2:$F$129,3,FALSE) -> Chaos
A36: 34 | B36: =FixturePaste!B35 -> SFisher91 | C36: =VLOOKUP(B36,Players!$C$2:$F$129,4,FALSE) -> Wales | D36: =VLOOKUP(B36,Players!$C$2:$F$129,3,FALSE) -> Chaos Pact | E36: =FixturePaste!C35 -> Barry | F36: =VLOOKUP(E36,Players!$C$2:$F$129,4,FALSE) -> Spain | G36: =VLOOKUP(E36,Players!$C$2:$F$129,3,FALSE) -> High Elves
A37: 35 | B37: =FixturePaste!B36 -> Ploppy_McPloppy | C37: =VLOOKUP(B37,Players!$C$2:$F$129,4,FALSE) -> Wales | D37: =VLOOKUP(B37,Players!$C$2:$F$129,3,FALSE) -> Slann | E37: =FixturePaste!C36 -> Malasnoticias | F37: =VLOOKUP(E37,Players!$C$2:$F$129,4,FALSE) -> Spain | G37: =VLOOKUP(E37,Players!$C$2:$F$129,3,FALSE) -> Chaos Pact
A38: 36 | B38: =FixturePaste!B37 -> 20Phoenix | C38: =VLOOKUP(B38,Players!$C$2:$F$129,4,FALSE) -> Wales | D38: =VLOOKUP(B38,Players!$C$2:$F$129,3,FALSE) -> Chaos Dwarves | E38: =FixturePaste!C37 -> Tactel | F38: =VLOOKUP(E38,Players!$C$2:$F$129,4,FALSE) -> Spain | G38: =VLOOKUP(E38,Players!$C$2:$F$129,3,FALSE) -> High Elves
A39: 37 | B39: =FixturePaste!B38 -> andydavo | C39: =VLOOKUP(B39,Players!$C$2:$F$129,4,FALSE) -> Wales | D39: =VLOOKUP(B39,Players!$C$2:$F$129,3,FALSE) -> Ogres | E39: =FixturePaste!C38 -> Dark Duke | F39: =VLOOKUP(E39,Players!$C$2:$F$129,4,FALSE) -> Spain | G39: =VLOOKUP(E39,Players!$C$2:$F$129,3,FALSE) -> Chaos Dwarves
A40: 38 | B40: =FixturePaste!B39 -> MadeofWelsh | C40: =VLOOKUP(B40,Players!$C$2:$F$129,4,FALSE) -> Wales | D40: =VLOOKUP(B40,Players!$C$2:$F$129,3,FALSE) -> Lizardmen | E40: =FixturePaste!C39 -> Joanet | F40: =VLOOKUP(E40,Players!$C$2:$F$129,4,FALSE) -> Spain | G40: =VLOOKUP(E40,Players!$C$2:$F$129,3,FALSE) -> Khemri
A41: 39 | B41: =FixturePaste!B40 -> Northernknight | C41: =VLOOKUP(B41,Players!$C$2:$F$129,4,FALSE) -> Wales | D41: =VLOOKUP(B41,Players!$C$2:$F$129,3,FALSE) -> Chaos | E41: =FixturePaste!C40 -> Duke_Luthor_Von_Hawkfire | F41: =VLOOKUP(E41,Players!$C$2:$F$129,4,FALSE) -> Spain | G41: =VLOOKUP(E41,Players!$C$2:$F$129,3,FALSE) -> Vampires
A42: 40 | B42: =FixturePaste!B41 -> nonumber | C42: =VLOOKUP(B42,Players!$C$2:$F$129,4,FALSE) -> Wales | D42: =VLOOKUP(B42,Players!$C$2:$F$129,3,FALSE) -> Skaven | E42: =FixturePaste!C41 -> Idroj | F42: =VLOOKUP(E42,Players!$C$2:$F$129,4,FALSE) -> Spain | G42: =VLOOKUP(E42,Players!$C$2:$F$129,3,FALSE) -> Dwarves
A43: 41 | B43: =FixturePaste!B42 -> Matte8 | C43: =VLOOKUP(B43,Players!$C$2:$F$129,4,FALSE) -> Italy | D43: =VLOOKUP(B43,Players!$C$2:$F$129,3,FALSE) -> Khemri | E43: =FixturePaste!C42 -> Jaqra | F43: =VLOOKUP(E43,Players!$C$2:$F$129,4,FALSE) -> Denmark | G43: =VLOOKUP(E43,Players!$C$2:$F$129,3,FALSE) -> Skaven
A44: 42 | B44: =FixturePaste!B43 -> Kaltenland | C44: =VLOOKUP(B44,Players!$C$2:$F$129,4,FALSE) -> Italy | D44: =VLOOKUP(B44,Players!$C$2:$F$129,3,FALSE) -> Chaos Pact | E44: =FixturePaste!C43 -> Niebling | F44: =VLOOKUP(E44,Players!$C$2:$F$129,4,FALSE) -> Denmark | G44: =VLOOKUP(E44,Players!$C$2:$F$129,3,FALSE) -> Amazons
A45: 43 | B45: =FixturePaste!B44 -> Verrinho | C45: =VLOOKUP(B45,Players!$C$2:$F$129,4,FALSE) -> Italy | D45: =VLOOKUP(B45,Players!$C$2:$F$129,3,FALSE) -> Nurgle's Rotters | E45: =FixturePaste!C44 -> Tank | F45: =VLOOKUP(E45,Players!$C$2:$F$129,4,FALSE) -> Denmark | G45: =VLOOKUP(E45,Players!$C$2:$F$129,3,FALSE) -> Necromantic
A46: 44 | B46: =FixturePaste!B45 -> Dirold | C46: =VLOOKUP(B46,Players!$C$2:$F$129,4,FALSE) -> Italy | D46: =VLOOKUP(B46,Players!$C$2:$F$129,3,FALSE) -> Amazons | E46: =FixturePaste!C45 -> MissSweden | F46: =VLOOKUP(E46,Players!$C$2:$F$129,4,FALSE) -> Denmark | G46: =VLOOKUP(E46,Players!$C$2:$F$129,3,FALSE) -> Chaos
A47: 45 | B47: =FixturePaste!B46 -> Farina | C47: =VLOOKUP(B47,Players!$C$2:$F$129,4,FALSE) -> Italy | D47: =VLOOKUP(B47,Players!$C$2:$F$129,3,FALSE) -> Chaos Dwarves | E47: =FixturePaste!C46 -> Tripleskull | F47: =VLOOKUP(E47,Players!$C$2:$F$129,4,FALSE) -> Denmark | G47: =VLOOKUP(E47,Players!$C$2:$F$129,3,FALSE) -> Chaos
A48: 46 | B48: =FixturePaste!B47 -> Beppe | C48: =VLOOKUP(B48,Players!$C$2:$F$129,4,FALSE) -> Italy | D48: =VLOOKUP(B48,Players!$C$2:$F$129,3,FALSE) -> Orc | E48: =FixturePaste!C47 -> Topper | F48: =VLOOKUP(E48,Players!$C$2:$F$129,4,FALSE) -> Denmark | G48: =VLOOKUP(E48,Players!$C$2:$F$129,3,FALSE) -> Chaos
A49: 47 | B49: =FixturePaste!B48 -> Liam | C49: =VLOOKUP(B49,Players!$C$2:$F$129,4,FALSE) -> Italy | D49: =VLOOKUP(B49,Players!$C$2:$F$129,3,FALSE) -> Wood Elves | E49: =FixturePaste!C48 -> SpecialOne | F49: =VLOOKUP(E49,Players!$C$2:$F$129,4,FALSE) -> Denmark | G49: =VLOOKUP(E49,Players!$C$2:$F$129,3,FALSE) -> Lizardmen
A50: 48 | B50: =FixturePaste!B49 -> Spartako | C50: =VLOOKUP(B50,Players!$C$2:$F$129,4,FALSE) -> Italy | D50: =VLOOKUP(B50,Players!$C$2:$F$129,3,FALSE) -> Skaven | E50: =FixturePaste!C49 -> kfoged | F50: =VLOOKUP(E50,Players!$C$2:$F$129,4,FALSE) -> Denmark | G50: =VLOOKUP(E50,Players!$C$2:$F$129,3,FALSE) -> Slann
A51: 49 | B51: =FixturePaste!B50 -> Simon_ACP | C51: =VLOOKUP(B51,Players!$C$2:$F$129,4,FALSE) -> France | D51: =VLOOKUP(B51,Players!$C$2:$F$129,3,FALSE) -> Humans | E51: =FixturePaste!C50 -> valkohukka | F51: =VLOOKUP(E51,Players!$C$2:$F$129,4,FALSE) -> Finland | G51: =VLOOKUP(E51,Players!$C$2:$F$129,3,FALSE) -> Slann
A52: 50 | B52: =FixturePaste!B51 -> Gros Nain | C52: =VLOOKUP(B52,Players!$C$2:$F$129,4,FALSE) -> France | D52: =VLOOKUP(B52,Players!$C$2:$F$129,3,FALSE) -> Norse | E52: =FixturePaste!C51 -> J-Ho | F52: =VLOOKUP(E52,Players!$C$2:$F$129,4,FALSE) -> Finland | G52: =VLOOKUP(E52,Players!$C$2:$F$129,3,FALSE) -> Nurgle's Rotters
A53: 51 | B53: =FixturePaste!B52 -> BiBi | C53: =VLOOKUP(B53,Players!$C$2:$F$129,4,FALSE) -> France | D53: =VLOOKUP(B53,Players!$C$2:$F$129,3,FALSE) -> Undead | E53: =FixturePaste!C52 -> BeerBeer | F53: =VLOOKUP(E53,Players!$C$2:$F$129,4,FALSE) -> Finland | G53: =VLOOKUP(E53,Players!$C$2:$F$129,3,FALSE) -> Necromantic
A54: 52 | B54: =FixturePaste!B53 -> Matt le fou | C54: =VLOOKUP(B54,Players!$C$2:$F$129,4,FALSE) -> France | D54: =VLOOKUP(B54,Players!$C$2:$F$129,3,FALSE) -> Undead | E54: =FixturePaste!C53 -> jopotzuki | F54: =VLOOKUP(E54,Players!$C$2:$F$129,4,FALSE) -> Finland | G54: =VLOOKUP(E54,Players!$C$2:$F$129,3,FALSE) -> Nurgle's Rotters
A55: 53 | B55: =FixturePaste!B54 -> Harti | C55: =VLOOKUP(B55,Players!$C$2:$F$129,4,FALSE) -> France | D55: =VLOOKUP(B55,Players!$C$2:$F$129,3,FALSE) -> Skaven | E55: =FixturePaste!C54 -> MacWitt | F55: =VLOOKUP(E55,Players!$C$2:$F$129,4,FALSE) -> Finland | G55: =VLOOKUP(E55,Players!$C$2:$F$129,3,FALSE) -> Elves
A56: 54 | B56: =FixturePaste!B55 -> BudWiser | C56: =VLOOKUP(B56,Players!$C$2:$F$129,4,FALSE) -> France | D56: =VLOOKUP(B56,Players!$C$2:$F$129,3,FALSE) -> Necromantic | E56: =FixturePaste!C55 -> Harza | F56: =VLOOKUP(E56,Players!$C$2:$F$129,4,FALSE) -> Finland | G56: =VLOOKUP(E56,Players!$C$2:$F$129,3,FALSE) -> Dwarves
A57: 55 | B57: =FixturePaste!B56 -> Justicium | C57: =VLOOKUP(B57,Players!$C$2:$F$129,4,FALSE) -> France | D57: =VLOOKUP(B57,Players!$C$2:$F$129,3,FALSE) -> Wood Elves | E57: =FixturePaste!C56 -> edheim | F57: =VLOOKUP(E57,Players!$C$2:$F$129,4,FALSE) -> Finland | G57: =VLOOKUP(E57,Players!$C$2:$F$129,3,FALSE) -> Chaos
A58: 56 | B58: =FixturePaste!B57 -> Bouzzy | C58: =VLOOKUP(B58,Players!$C$2:$F$129,4,FALSE) -> France | D58: =VLOOKUP(B58,Players!$C$2:$F$129,3,FALSE) -> Chaos Pact | E58: =FixturePaste!C57 -> ratogre | F58: =VLOOKUP(E58,Players!$C$2:$F$129,4,FALSE) -> Finland | G58: =VLOOKUP(E58,Players!$C$2:$F$129,3,FALSE) -> Necromantic
A59: 57 | B59: =FixturePaste!B58 -> BlackOrc | C59: =VLOOKUP(B59,Players!$C$2:$F$129,4,FALSE) -> Hungary | D59: =VLOOKUP(B59,Players!$C$2:$F$129,3,FALSE) -> Chaos Pact | E59: =FixturePaste!C58 -> Candlejack | F59: =VLOOKUP(E59,Players!$C$2:$F$129,4,FALSE) -> Germany | G59: =VLOOKUP(E59,Players!$C$2:$F$129,3,FALSE) -> Undead
A60: 58 | B60: =FixturePaste!B59 -> noraal | C60: =VLOOKUP(B60,Players!$C$2:$F$129,4,FALSE) -> Hungary | D60: =VLOOKUP(B60,Players!$C$2:$F$129,3,FALSE) -> Underworld | E60: =FixturePaste!C59 -> Jonny_Kanone | F60: =VLOOKUP(E60,Players!$C$2:$F$129,4,FALSE) -> Germany | G60: =VLOOKUP(E60,Players!$C$2:$F$129,3,FALSE) -> Chaos Dwarves
A61: 59 | B61: =FixturePaste!B60 -> Alex05 | C61: =VLOOKUP(B61,Players!$C$2:$F$129,4,FALSE) -> Hungary | D61: =VLOOKUP(B61,Players!$C$2:$F$129,3,FALSE) -> Orc | E61: =FixturePaste!C60 -> DocMaxx | F61: =VLOOKUP(E61,Players!$C$2:$F$129,4,FALSE) -> Germany | G61: =VLOOKUP(E61,Players!$C$2:$F$129,3,FALSE) -> Chaos Pact
A62: 60 | B62: =FixturePaste!B61 -> Itzla | C62: =VLOOKUP(B62,Players!$C$2:$F$129,4,FALSE) -> Hungary | D62: =VLOOKUP(B62,Players!$C$2:$F$129,3,FALSE) -> Chaos Dwarves | E62: =FixturePaste!C61 -> Muadib | F62: =VLOOKUP(E62,Players!$C$2:$F$129,4,FALSE) -> Germany | G62: =VLOOKUP(E62,Players!$C$2:$F$129,3,FALSE) -> Khemri
A63: 61 | B63: =FixturePaste!B62 -> Wolio | C63: =VLOOKUP(B63,Players!$C$2:$F$129,4,FALSE) -> Hungary | D63: =VLOOKUP(B63,Players!$C$2:$F$129,3,FALSE) -> Dark Elves | E63: =FixturePaste!C62 -> Arioso | F63: =VLOOKUP(E63,Players!$C$2:$F$129,4,FALSE) -> Germany | G63: =VLOOKUP(E63,Players!$C$2:$F$129,3,FALSE) -> Orc
A64: 62 | B64: =FixturePaste!B63 -> Favi | C64: =VLOOKUP(B64,Players!$C$2:$F$129,4,FALSE) -> Hungary | D64: =VLOOKUP(B64,Players!$C$2:$F$129,3,FALSE) -> Skaven | E64: =FixturePaste!C63 -> Gaunab | F64: =VLOOKUP(E64,Players!$C$2:$F$129,4,FALSE) -> Germany | G64: =VLOOKUP(E64,Players!$C$2:$F$129,3,FALSE) -> Orc
A65: 63 | B65: =FixturePaste!B64 -> swifty | C65: =VLOOKUP(B65,Players!$C$2:$F$129,4,FALSE) -> Hungary | D65: =VLOOKUP(B65,Players!$C$2:$F$129,3,FALSE) -> Khemri | E65: =FixturePaste!C64 -> Prince | F65: =VLOOKUP(E65,Players!$C$2:$F$129,4,FALSE) -> Germany | G65: =VLOOKUP(E65,Players!$C$2:$F$129,3,FALSE) -> Lizardmen
A66: 64 | B66: =FixturePaste!B65 -> cz | C66: =VLOOKUP(B66,Players!$C$2:$F$129,4,FALSE) -> Hungary | D66: =VLOOKUP(B66,Players!$C$2:$F$129,3,FALSE) -> Underworld | E66: =FixturePaste!C65 -> RoterSternHochdah | F66: =VLOOKUP(E66,Players!$C$2:$F$129,4,FALSE) -> Germany | G66: =VLOOKUP(E66,Players!$C$2:$F$129,3,FALSE) -> Chaos Dwarves

Sheet Buttons
